bitfinex/quotes_SOLUSD_20250806
["timestamp","ask_amount","ask_price","bid_price","bid_amount"]
[1754503777443,0.01,170.06,170.05,47.50062334]
[1754503779975,0.66,170.06,170.05,47.50062334]
[1754503780455,0.01,170.06,170.05,47.50062334]
[1754503783357,0.66,170.06,170.05,47.50062334]
[1754503783750,0.01,170.06,170.05,47.50062334]
[1754503783947,0.01,170.06,170.03,0.06]
[1754503783948,6.72321703,170.06,170.03,0.06]
[1754503784144,6.06321703,170.04,170.03,0.06]
[1754503784553,6.71321703,170.04,170.03,0.06]
[1754503785241,12.59418621,170.04,170.03,0.06]
[1754503785957,16.5513632,170.04,170.03,0.06]
[1754503786444,10.48814617,170.04,170.03,0.06]
[1754503786644,32.71321703,170.04,170.03,0.06]
[1754503786840,42.5513632,170.04,170.03,0.06]
[1754503789554,57.94190191,170.04,170.03,0.06]
[1754503790770,75.62067891,170.04,170.03,0.06]
[1754503792556,15.39053871,170.03,170.02,1.06]
[1754503792753,32.13414976,170.03,170.01,122.11402276]
[1754503792953,73.73414976,170.02,170.01,122.11402276]
[1754503793152,15.39053871,170.01,170.0,0.06]
[1754503793387,26.07108179,170.01,170.0,0.06]
[1754503793597,22.11375574,170.01,170.0,0.06]
[1754503793960,27.99576268,170.01,170.0,0.06]
[1754503794469,38.01381096,170.01,170.0,0.06]
[1754503794664,34.60994268,170.01,170.0,0.06]
[1754503794982,44.62806151,170.01,170.0,0.06]
[1754503796285,41.39053871,169.98,169.97,0.06]
[1754503796451,89.05375574,169.98,169.97,0.06]
[1754503796651,89.71375574,169.98,169.97,0.06]
[1754503796848,92.07189874,169.98,169.97,0.06]
[1754503798483,97.9549438,169.98,169.97,0.06]
[1754503800672,95.5968008,169.98,169.97,0.06]
[1754503801587,41.10621557,169.95,169.94,0.06]
[1754503801773,15.10621557,169.94,169.92,0.06]
[1754503801964,15.39053871,169.92,169.91,0.06]
[1754503802272,27.99887815,169.92,169.91,0.06]
[1754503804178,31.93498485,169.92,169.91,0.06]
[1754503804587,41.39053871,169.9,169.89,0.06]
[1754503804778,0.28432314,169.88,169.87,0.2]
[1754503804980,57.67053871,169.88,169.87,0.2]
[1754503805372,63.73375574,169.88,169.87,0.2]
[1754503805996,69.62026386,169.88,169.87,0.2]
[1754503806497,57.67053871,169.88,169.87,0.2]
[1754503806695,63.07375574,169.88,169.87,0.2]
[1754503806895,89.07375574,169.88,169.87,0.87]
[1754503807101,88.7894326,169.88,169.87,0.87]
[1754503807299,47.1694326,169.88,169.87,0.87]
[1754503807498,89.07375574,169.88,169.87,0.2]
[1754503807699,88.93159417,169.88,169.87,0.2]
[1754503807998,89.07375574,169.88,169.87,0.87]
[1754503808322,89.07375574,169.88,169.87,0.2]
[1754503810504,67.90432314,169.88,169.87,0.87]
[1754503810817,41.62,169.88,169.87,6.75685465]
[1754503810982,15.10621557,169.9,169.87,6.75685465]
[1754503811178,27.06688449,169.98,169.88,0.67]
[1754503811179,26.0,169.92,169.88,0.67]
[1754503811387,56.72621557,169.92,169.88,6.73321703]
[1754503811685,41.62,169.92,169.89,0.67]
[1754503811890,41.64,169.92,169.9,0.67]
[1754503812075,41.64,169.93,169.9,6.73321703]
[1754503812276,56.74621557,169.94,169.91,6.55546877]
[1754503812591,56.74621557,169.94,169.92,0.67]
[1754503812784,0.28432314,169.93,169.92,0.67]
[1754503813100,0.14216157,169.93,169.92,0.67]
[1754503813319,15.10621557,169.99,169.92,0.67]
[1754503813491,26.0,169.95,169.92,0.67]
[1754503813990,32.06321703,169.95,169.92,0.67]
[1754503814386,32.06321703,169.95,169.92,6.55483213]
[1754503814585,67.62,169.95,169.92,6.55483213]
[1754503814778,6.06321703,169.95,169.92,5.88483213]
[1754503814983,47.1694326,169.96,169.93,0.67]
[1754503815186,88.7894326,169.96,169.93,0.67]
[1754503815383,82.72621557,169.96,169.93,0.67]
[1754503815584,88.7894326,169.96,169.94,0.67]
[1754503816712,88.7894326,169.96,169.94,6.55424608]
[1754503817213,88.7894326,169.96,169.94,5.88424608]
[1754503817512,88.7894326,169.96,169.93,5.8847122]
[1754503817910,88.7894326,169.96,169.93,6.5547122]
[1754503818616,89.4494326,169.96,169.92,5.88512241]
[1754503818798,89.4494326,169.96,169.92,6.54512241]
[1754503819409,0.69,169.95,169.92,5.88512241]
[1754503819711,48.37321703,169.94,169.89,6.06321703]
[1754503819906,41.62,169.93,169.89,11.94937866]
[1754503820112,42.31,169.93,169.89,12.60937866]
[1754503820592,42.31,169.93,169.89,6.54616163]
[1754503820792,0.69,169.92,169.89,5.88616163]
[1754503821313,41.62,169.93,169.89,12.60937866]
[1754503822309,0.28432314,169.92,169.89,6.54616163]
[1754503822509,6.75321703,169.91,169.89,5.88616163]
[1754503822898,48.37321703,169.91,169.89,5.88616163]
[1754503823215,41.62,169.91,169.89,5.88616163]
[1754503823710,41.62,169.91,169.89,6.54616163]
[1754503824214,41.62,169.91,169.89,5.88616163]
[1754503824815,47.68321703,169.91,169.88,5.94650812]
[1754503825019,41.62,169.91,169.89,0.66]
[1754503826694,41.62,169.91,169.88,5.94650812]
[1754503826902,41.62,169.91,169.88,6.60650812]
[1754503827491,47.68321703,169.91,169.88,6.60650812]
[1754503827692,21.1694326,169.89,169.88,0.06]
[1754503827901,63.07375574,169.89,169.88,0.06]
[1754503828086,89.76375574,169.89,169.88,0.06]
[1754503829099,69.64991737,169.89,169.88,0.06]
[1754503829487,73.58984881,169.89,169.88,0.06]
[1754503829818,25.90663178,169.89,169.88,0.06]
[1754503830023,73.58984881,169.89,169.88,0.06]
[1754503830189,69.64991737,169.89,169.88,0.06]
[1754503830613,63.76375574,169.89,169.88,0.06]
[1754503830826,67.70506415,169.89,169.88,0.06]
[1754503831519,63.07375574,169.89,169.88,0.06]
[1754503832841,26.0,169.91,169.88,0.06]
[1754503833011,41.62,169.92,169.88,6.78321703]
[1754503833196,26.0,169.92,169.89,0.66]
[1754503833824,0.69,169.91,169.88,0.06]
[1754503834702,6.75321703,169.91,169.88,0.06]
[1754503834920,48.53321703,169.91,169.88,0.06]
[1754503835823,6.06321703,169.9,169.88,0.06]
[1754503836025,88.9694326,169.89,169.88,0.06]
[1754503836221,89.25375574,169.89,169.88,0.06]
[1754503836527,89.94375574,169.89,169.88,0.06]
[1754503836706,93.89323824,169.89,169.88,0.06]
[1754503836911,83.88053871,169.89,169.88,0.06]
[1754503837111,89.94375574,169.89,169.88,0.06]
[1754503837305,87.83148505,169.89,169.88,0.06]
[1754503837510,93.8947726,169.89,169.88,0.06]
[1754503837715,89.94375574,169.89,169.88,0.06]
[1754503837919,99.78091855,169.89,169.88,0.06]
[1754503838526,73.78091855,169.89,169.88,0.06]
[1754503840601,15.39053871,169.88,169.86,0.06]
[1754503840806,70.82712285,169.87,169.86,0.06]
[1754503841007,71.51712285,169.87,169.86,0.06]
[1754503841624,77.4039775,169.87,169.86,0.06]
[1754503847037,15.39053871,169.86,169.84,0.06]
[1754503847336,15.39053871,169.86,169.8,0.2]
[1754503847337,41.39053871,169.83,169.8,0.2]
[1754503847515,76.67536403,169.83,169.8,0.2]
[1754503847834,77.36536403,169.83,169.8,0.2]
[1754503848043,15.39053871,169.81,169.8,0.2]
[1754503848252,70.78712285,169.81,169.8,0.2]
[1754503848532,0.28432314,169.76,169.74,0.2]
[1754503848741,51.44558296,169.75,169.74,0.2]
[1754503849033,66.83612167,169.75,169.74,0.86]
[1754503849337,66.83612167,169.75,169.74,0.2]
[1754503850413,72.72713787,169.75,169.74,0.2]
[1754503850839,99.39713787,169.75,169.74,0.2]
[1754503852035,92.83612167,169.75,169.74,0.2]
[1754503852343,92.81612167,169.75,169.74,0.86]
[1754503853022,99.37713787,169.75,169.74,0.2]
[1754503853558,98.70713787,169.75,169.74,0.2]
[1754503853934,73.37713787,169.75,169.74,0.2]
[1754503855762,41.10621557,169.72,169.71,0.2]
[1754503855945,92.81612167,169.72,169.71,0.2]
[1754503856151,93.48612167,169.72,169.71,0.2]
[1754503856360,15.39053871,169.71,169.69,0.1]
[1754503856565,66.79612167,169.7,169.69,0.1]
[1754503856945,67.46612167,169.7,169.69,0.1]
[1754503857160,73.35887358,169.7,169.69,0.1]
[1754503857880,41.10621557,169.68,169.67,0.2]
[1754503858053,102.52170463,169.68,169.67,0.2]
[1754503858377,93.46612167,169.68,169.67,0.2]
[1754503858750,92.81612167,169.68,169.67,0.2]
[1754503859550,98.70956815,169.68,169.67,0.2]
[1754503859879,88.98398519,169.68,169.67,0.2]
[1754503860058,98.70956815,169.68,169.67,0.2]
[1754503860257,92.81612167,169.68,169.67,0.2]
[1754503860459,92.53179853,169.68,169.67,0.86]
[1754503860985,82.80621557,169.68,169.67,0.86]
[1754503861163,41.7,169.68,169.67,0.86]
[1754503861353,51.42558296,169.68,169.67,0.86]
[1754503861675,41.7,169.68,169.67,0.86]
[1754503862466,51.44558296,169.68,169.67,0.86]
[1754503862684,41.72,169.68,169.67,0.86]
[1754503863054,67.50612167,169.68,169.67,0.2]
[1754503863390,73.39956815,169.68,169.67,0.2]
[1754503863684,72.72956815,169.68,169.67,0.2]
[1754503863858,72.72956815,169.68,169.67,0.18]
[1754503864885,15.10621557,169.68,169.67,0.84]
[1754503865054,41.76,169.68,169.67,0.84]
[1754503865257,41.76,169.68,169.67,6.73379383]
[1754503865568,41.74,169.69,169.67,16.45937679]
[1754503865763,9.72558296,169.72,169.68,0.66]
[1754503865764,41.74,169.7,169.68,0.66]
[1754503865983,26.0,169.71,169.68,0.66]
[1754503866155,67.74,169.71,169.68,0.66]
[1754503866356,77.46558296,169.71,169.68,0.66]
[1754503866555,77.46558296,169.71,169.69,0.66]
[1754503867173,67.74,169.71,169.67,0.84]
[1754503867363,77.46558296,169.71,169.68,0.66]
[1754503867560,26.0,169.71,169.69,9.72558296]
[1754503867789,41.74,169.72,169.7,0.66]
[1754503868081,9.725583,169.75,169.71,9.72558296]
[1754503868269,26.0,169.75,169.72,9.72558296]
[1754503868466,26.0,169.74,169.73,0.66]
[1754503868786,24.83179853,169.77,169.74,0.66]
[1754503868967,9.725583,169.78,169.74,0.66]
[1754503869170,9.725583,169.78,169.72,5.89203304]
[1754503869171,19.45116596,169.78,169.75,0.66]
[1754503869364,26.0,169.76,169.75,0.66]
[1754503870571,26.0,169.76,169.74,0.66]
[1754503870767,9.72558296,169.78,169.74,0.66]
[1754503870966,26.0,169.76,169.74,0.66]
[1754503871282,26.0,169.76,169.72,6.5519552]
[1754503871483,26.0,169.76,169.73,0.66]
[1754503871783,26.0,169.76,169.74,0.66]
[1754503871974,26.0,169.75,169.72,5.8919552]
[1754503872162,26.0,169.75,169.72,16.27753816]
[1754503872362,26.0,169.75,169.73,0.66]
[1754503872591,41.74,169.78,169.74,9.72558296]
[1754503872790,15.10621557,169.78,169.75,0.66]
[1754503872961,15.10621557,169.78,169.76,0.66]
[1754503873459,67.72,169.79,169.77,0.66]
[1754503873666,14.89311962,169.88,169.78,10.38558296]
[1754503873667,15.10621557,169.82,169.78,10.38558296]
[1754503873865,67.72,169.81,169.79,0.66]
[1754503874170,82.82621557,169.81,169.8,0.66]
[1754503874765,82.82621557,169.81,169.78,16.27552195]
[1754503874976,67.72,169.81,169.79,0.66]
[1754503875175,26.0,169.81,169.8,0.66]
[1754503875683,26.0,169.81,169.8,10.38558296]
[1754503875888,26.0,169.81,169.8,0.66]
[1754503876579,26.0,169.81,169.79,9.72558296]
[1754503876773,26.0,169.81,169.79,10.38558296]
[1754503877177,26.0,169.81,169.79,16.2752033]
[1754503877373,26.0,169.81,169.8,0.66]
[1754503877693,25.50179853,169.84,169.8,0.66]
[1754503877694,26.0,169.84,169.8,10.38558296]
[1754503877992,26.0,169.84,169.81,10.38558296]
[1754503878592,26.0,169.84,169.81,0.66]
[1754503879713,51.44558296,169.85,169.81,0.72]
[1754503879899,26.0,169.84,169.81,0.72]
[1754503880185,26.0,169.84,169.8,5.88896817]
[1754503880391,26.71,169.84,169.8,9.72558296]
[1754503880764,26.0,169.84,169.81,0.72]
[1754503881193,26.0,169.84,169.8,9.72558296]
[1754503881394,26.71,169.84,169.8,10.44558296]
[1754503882594,26.71,169.84,169.8,16.33475059]
[1754503882775,145.9,169.83,169.8,16.33475059]
[1754503882970,145.9,169.83,169.81,0.72]
[1754503883497,145.9,169.83,169.8,15.61475059]
[1754503883892,146.61,169.83,169.79,6.60953049]
[1754503884084,146.61,169.83,169.79,10.44558296]
[1754503884300,0.71,169.82,169.79,15.6151269]
[1754503884599,187.56,169.83,169.79,16.3351269]
[1754503884771,188.27,169.83,169.79,16.3351269]
[1754503885393,187.56,169.83,169.8,10.44558296]
[1754503885577,145.9,169.83,169.8,9.72558296]
[1754503885778,145.9,169.83,169.8,10.44558296]
[1754503886176,145.9,169.83,169.8,0.72]
[1754503886380,146.61,169.83,169.79,5.88954394]
[1754503886596,146.61,169.83,169.79,15.6151269]
[1754503886902,146.61,169.83,169.79,6.60954394]
[1754503887094,146.61,169.83,169.8,9.72558296]
[1754503887406,0.71,169.82,169.76,15.44604041]
[1754503887583,0.71,169.82,169.79,9.72558296]
[1754503887904,145.9,169.83,169.79,9.72558296]
[1754503888111,146.61,169.83,169.79,10.44558296]
[1754503889004,146.61,169.83,169.79,0.72]
[1754503889308,0.71,169.82,169.79,9.72558296]
[1754503890693,145.9,169.83,169.81,9.72558296]
[1754503890891,145.9,169.83,169.82,0.72]
[1754503891093,26.0,169.83,169.82,0.72]
[1754503891806,26.0,169.83,169.82,10.44558296]
[1754503892499,26.0,169.83,169.8,6.60904804]
[1754503892702,26.0,169.83,169.82,6.07420233]
[1754503893373,57.47621557,169.86,169.82,6.79420233]
[1754503893374,26.0,169.85,169.82,6.79420233]
[1754503893574,42.37,169.86,169.8,5.88904804]
[1754503893575,42.37,169.86,169.83,6.79420233]
[1754503893804,42.37,169.86,169.83,6.07420233]
[1754503894112,42.37,169.86,169.8,20.6122518]
[1754503894113,0.03,169.87,169.85,6.07420233]
[1754503894475,0.03,169.87,169.86,6.07420233]
[1754503895781,0.03,169.87,169.84,6.60788127]
[1754503895984,0.03,169.87,169.85,6.07420233]
[1754503896289,0.74,169.87,169.85,6.07420233]
[1754503896485,146.64,169.87,169.85,11.96162362]
[1754503896688,146.64,169.87,169.86,9.71446583]
[1754503896886,145.93,169.87,169.84,5.88780719]
[1754503897101,146.64,169.87,169.86,9.71446583]
[1754503897479,145.93,169.87,169.86,9.71446583]
[1754503897887,145.93,169.87,169.86,10.43446583]
[1754503898308,145.93,169.87,169.86,9.71446583]
[1754503898513,145.93,169.87,169.86,15.60166705]
[1754503899315,145.93,169.87,169.86,16.32166705]
[1754503899505,145.93,169.87,169.86,6.60720122]
[1754503899706,145.93,169.87,169.86,9.71446583]
[1754503900088,146.64,169.87,169.86,9.71446583]
[1754503900291,145.93,169.87,169.86,15.60166705]
[1754503902117,145.93,169.87,169.86,9.71446583]
[1754503902118,146.64,169.87,169.86,9.71446583]
[1754503902295,146.64,169.87,169.85,9.71446583]
[1754503902617,0.71,169.86,169.85,9.71446583]
[1754503903013,0.71,169.86,169.84,9.71446583]
[1754503903221,0.71,169.85,169.84,9.71446583]
[1754503903604,0.71,169.85,169.83,15.60259967]
[1754503904121,187.57,169.87,169.84,9.71446583]
[1754503904305,188.28,169.87,169.84,9.71446583]
[1754503904492,187.57,169.87,169.84,9.71446583]
[1754503904814,0.71,169.86,169.83,9.71446583]
[1754503905197,0.71,169.85,169.83,9.71446583]
[1754503905396,0.71,169.85,169.82,15.60297138]
[1754503905799,0.71,169.85,169.83,9.71446583]
[1754503906917,0.71,169.85,169.82,9.71446583]
[1754503907221,0.71,169.85,169.83,9.71446583]
[1754503910514,187.57,169.87,169.84,0.69]
[1754503910718,188.24,169.87,169.83,9.71446583]
[1754503910910,0.67,169.86,169.83,9.71446583]
[1754503911097,0.67,169.85,169.82,9.71446583]
[1754503911299,0.67,169.84,169.82,9.71446583]
[1754503911515,16.06053871,169.86,169.82,9.71446583]
[1754503911713,15.39053871,169.86,169.83,0.69]
[1754503912223,16.06053871,169.86,169.83,0.69]
[1754503912398,16.06053871,169.86,169.83,10.40446583]
[1754503912916,187.57,169.87,169.83,0.69]
[1754503913120,187.57,169.87,169.84,0.69]
[1754503913295,187.57,169.87,169.84,10.40446583]
[1754503913708,145.93,169.87,169.84,0.69]
[1754503913935,145.93,169.87,169.84,10.40446583]
[1754503914144,146.6,169.87,169.84,10.40446583]
[1754503914315,146.6,169.87,169.84,9.71446583]
[1754503915428,146.6,169.87,169.84,15.60221111]
[1754503915634,145.93,169.87,169.85,9.71446583]
[1754503915936,145.93,169.87,169.86,9.71446583]
[1754503916239,145.93,169.87,169.85,9.71446583]
[1754503916422,145.93,169.87,169.84,5.88774528]
[1754503916625,145.93,169.87,169.85,6.07195266]
[1754503916827,146.6,169.87,169.84,5.88774528]
[1754503917030,146.6,169.87,169.84,11.95969794]
[1754503917639,145.93,169.87,169.85,6.07195266]
[1754503917814,0.67,169.86,169.81,0.69]
[1754503918142,156.60026947,169.86,169.81,6.07195266]
[1754503918345,0.67,169.85,169.81,6.07195266]
[1754503918509,4.63063867,169.85,169.82,6.07195266]
[1754503919029,3.96063867,169.85,169.78,20.61415365]
[1754503919223,145.9,169.86,169.84,6.07195266]
[1754503919427,145.9,169.86,169.85,6.07195266]
[1754503919628,149.86113425,169.86,169.85,6.07195266]
[1754503920342,145.9,169.86,169.85,0.69]
[1754503920547,145.9,169.86,169.84,6.07195266]
[1754503921313,0.67,169.85,169.82,5.88846861]
[1754503921546,0.67,169.84,169.81,11.96077621]
[1754503921730,145.9,169.83,169.81,11.96077621]
[1754503923136,145.9,169.83,169.81,5.88882355]
[1754503923340,145.9,169.83,169.81,11.96077621]
[1754503923957,145.9,169.83,169.81,5.88882355]
[1754503924160,0.67,169.82,169.78,5.88997526]
[1754503924461,0.67,169.82,169.79,6.07195266]
[1754503924783,0.67,169.82,169.8,6.07195266]
[1754503925251,145.9,169.83,169.8,11.96115666]
[1754503925432,146.57,169.83,169.8,11.96115666]
[1754503926139,145.9,169.83,169.8,6.07195266]
[1754503926545,0.67,169.82,169.8,6.07195266]
[1754503927042,48.52411423,169.81,169.74,11.96331592]
[1754503927233,6.07195266,169.79,169.74,11.96331592]
[1754503927437,0.67,169.78,169.74,11.96331592]
[1754503927646,0.67,169.78,169.74,12.65331592]
[1754503927949,6.07195266,169.8,169.75,6.07195266]
[1754503928158,41.64,169.82,169.78,6.07195266]
[1754503928343,26.67,169.83,169.8,6.07195266]
[1754503928561,0.67,169.85,169.82,6.07195266]
[1754503928762,0.67,169.84,169.82,6.07195266]
[1754503928966,0.67,169.83,169.8,6.07195266]
[1754503929379,0.67,169.82,169.78,5.88986448]
[1754503929562,0.67,169.81,169.78,5.88986448]
[1754503929884,0.67,169.8,169.78,6.07195266]
[1754503930082,0.67,169.8,169.77,5.89021765]
[1754503930264,0.67,169.82,169.78,6.07195266]
[1754503930587,0.67,169.82,169.79,6.07195266]
[1754503930958,26.0,169.83,169.79,11.96158102]
[1754503931164,26.0,169.83,169.8,6.07195266]
[1754503931454,26.0,169.83,169.79,6.07195266]
[1754503931668,0.67,169.82,169.79,6.07195266]
[1754503931983,0.67,169.82,169.78,11.9618105]
[1754503932167,0.67,169.82,169.79,6.07195266]
[1754503932679,26.0,169.83,169.79,6.07195266]
[1754503932874,26.67,169.83,169.79,12.6515182]
[1754503933181,0.67,169.82,169.79,6.07195266]
[1754503933383,0.67,169.82,169.78,11.96180508]
[1754503933685,0.67,169.82,169.79,6.07195266]
[1754503933859,146.57,169.81,169.75,0.69]
[1754503934061,145.9,169.81,169.79,6.07195266]
[1754503934277,145.9,169.81,169.79,6.76195266]
[1754503934486,145.9,169.81,169.8,6.07195266]
[1754503934968,145.9,169.81,169.79,6.07195266]
[1754503936518,146.57,169.81,169.79,6.07195266]
[1754503936694,0.67,169.8,169.78,6.07195266]
[1754503937024,0.67,169.79,169.76,6.07195266]
[1754503937494,0.67,169.78,169.74,42.33]
[1754503937692,0.67,169.78,169.75,6.07195266]
[1754503937894,6.07195266,169.79,169.74,47.71195266]
[1754503938104,0.67,169.77,169.74,47.71195266]
[1754503938706,3.96488668,169.8,169.76,6.07195266]
[1754503939115,0.69,169.79,169.76,6.07195266]
[1754503939439,4.65488668,169.8,169.77,6.07195266]
[1754503939638,145.9,169.81,169.77,6.07195266]
[1754503939850,145.9,169.81,169.78,6.07195266]
[1754503939851,146.59,169.81,169.78,6.07195266]
[1754503940141,145.9,169.81,169.79,6.79195266]
[1754503940548,145.9,169.81,169.75,20.6183248]
[1754503940703,145.9,169.81,169.8,6.79195266]
[1754503940902,145.9,169.81,169.8,12.68123416]
[1754503941708,32.57761287,169.85,169.8,12.68123416]
[1754503941709,26.69,169.85,169.8,12.68123416]
[1754503941913,26.69,169.85,169.82,6.07195266]
[1754503942940,172.59,169.85,169.82,6.07195266]
[1754503943117,145.9,169.85,169.83,6.07195266]
[1754503943442,145.9,169.85,169.84,6.07195266]
[1754503944225,0.03,169.86,169.84,6.07195266]
[1754503944537,3.99230619,169.86,169.85,6.07195266]
[1754503944940,0.03,169.86,169.85,11.95950049]
[1754503945241,3.99230619,169.86,169.84,6.07195266]
[1754503945437,4.68230619,169.86,169.84,6.07195266]
[1754503945623,3.99230619,169.86,169.84,6.07195266]
[1754503946149,0.03,169.86,169.85,6.07195266]
[1754503946355,0.03,169.86,169.85,6.79195266]
[1754503947173,0.03,169.86,169.85,5.88754783]
[1754503947357,0.03,169.86,169.85,11.95950049]
[1754503948456,0.03,169.86,169.85,12.67950049]
[1754503948946,0.72,169.86,169.82,41.62]
[1754503949160,0.72,169.86,169.85,6.07195266]
[1754503949361,0.72,169.86,169.84,6.07195266]
[1754503949552,0.69,169.85,169.83,6.07195266]
[1754503949923,0.03,169.86,169.84,6.07195266]
[1754503950342,0.72,169.86,169.84,6.07195266]
[1754503950728,145.9,169.85,169.84,6.07195266]
[1754503950929,146.59,169.85,169.82,53.58044418]
[1754503951240,146.59,169.85,169.82,11.96044418]
[1754503951422,146.59,169.85,169.82,5.88849152]
[1754503951619,146.59,169.85,169.83,6.07195266]
[1754503952042,145.9,169.85,169.84,6.07195266]
[1754503952250,145.9,169.85,169.84,11.95984714]
[1754503952832,145.9,169.85,169.84,12.67984714]
[1754503954254,145.9,169.85,169.84,11.95984714]
[1754503956260,145.9,169.85,169.84,5.88789448]
[1754503956450,145.9,169.85,169.84,11.95984714]
[1754503957260,145.9,169.85,169.84,12.67984714]
[1754503958051,0.03,169.86,169.84,12.67984714]
[1754503958248,0.03,169.86,169.85,12.67950049]
[1754503959325,0.03,169.86,169.85,6.60754783]
[1754503959542,0.03,169.86,169.85,12.67950049]
[1754503961560,0.03,169.86,169.85,11.95950049]
[1754503962837,0.72,169.86,169.82,5.88858791]
[1754503963176,0.72,169.86,169.84,6.07195266]
[1754503963177,0.03,169.86,169.84,6.07195266]
[1754503963342,0.69,169.85,169.83,41.6]
[1754503963541,0.72,169.86,169.84,6.07195266]
[1754503963758,0.72,169.86,169.85,6.07195266]
[1754503964072,0.72,169.86,169.83,6.07195266]
[1754503965346,0.72,169.86,169.81,53.56087573]
[1754503966191,0.72,169.86,169.82,6.07195266]
[1754503966351,0.69,169.85,169.82,6.07195266]
[1754503966856,0.69,169.85,169.83,6.07195266]
[1754503967359,0.03,169.86,169.82,11.96042889]
[1754503967550,0.69,169.84,169.82,11.96042889]
[1754503967751,0.72,169.86,169.83,6.07195266]
[1754503968051,0.69,169.85,169.83,6.07195266]
[1754503968252,0.03,169.86,169.83,6.07195266]
[1754503968569,0.03,169.86,169.84,6.07195266]
[1754503968876,0.03,169.86,169.85,6.07195266]
[1754503969046,0.03,169.86,169.85,12.65950049]
[1754503969252,0.03,169.86,169.85,54.25950049]
[1754503971080,0.03,169.87,169.85,54.25950049]
[1754503971375,0.03,169.87,169.86,6.77195266]
[1754503971751,0.03,169.87,169.86,0.7]
[1754503971979,0.03,169.87,169.86,6.77195266]
[1754503972660,0.03,169.88,169.86,48.16249137]
[1754503972854,0.03,169.88,169.87,12.65880731]
[1754503976668,0.03,169.88,169.87,53.55880731]
[1754503979388,0.03,169.88,169.87,54.25880731]
[1754503982572,0.03,169.88,169.87,53.55880731]
[1754503982773,0.03,169.88,169.87,53.53880731]
[1754503983588,0.03,169.88,169.87,54.23880731]
[1754503983759,0.03,169.88,169.87,53.53880731]
[1754503984184,0.03,169.88,169.87,11.95880731]
[1754503984484,0.03,169.88,169.87,53.53880731]
[1754503986786,0.03,169.88,169.87,54.23880731]
[1754503993029,1e-08,169.9,169.87,68.95594394]
[1754503993194,0.03,169.96,169.89,53.25012089]
[1754503993508,0.03,169.96,169.95,6.07195266]
[1754503993674,0.03,169.96,169.95,47.65195266]
[1754503994201,0.03,169.96,169.95,53.53603621]
[1754503995004,0.74,169.96,169.95,53.53603621]
[1754503996373,0.74,169.96,169.95,11.95603621]
[1754503996595,0.74,169.96,169.95,53.51603621]
[1754503996908,0.03,169.96,169.95,53.51603621]
[1754503998579,0.74,169.96,169.95,53.51603621]
[1754503999395,0.74,169.96,169.95,11.95603621]
[1754503999582,0.74,169.96,169.95,53.51603621]
[1754504000204,0.03,169.96,169.95,53.51603621]
[1754504000709,0.75,169.96,169.95,53.51603621]
[1754504001088,0.03,169.96,169.95,53.51603621]
[1754504007438,0.03,169.96,169.95,47.44408355]
[1754504007628,0.03,169.96,169.95,53.51603621]
[1754504007924,0.75,169.96,169.95,41.56]
[1754504010397,0.03,169.96,169.95,53.51603621]
[1754504011017,0.03,169.96,169.95,54.18603621]
[1754504011236,0.03,169.96,169.95,53.51603621]
[1754504012643,0.03,169.96,169.95,54.18603621]
[1754504020525,0.03,169.98,169.95,68.89624509]
[1754504020725,0.03,169.98,169.97,6.07195266]
[1754504020942,0.03,169.98,169.97,47.61195266]